Workbook

Sheet Solution 1
J7: S | S7: Herd Composition
J8: Reference Values for Drought Severity Effects on Seasonal Forage Production | T8: Jan - May | U8: June - Dec
N9: Winter* | P9: Summer | S9: Cows | T9: 300 | U9: 300
J10: Standard Precipitation Index (SPI) | N10: -1 | O10: -2 | P10: -1 | Q10: -2 | S10: Bulls | T10: =T9/15 -> 20 | U10: =U9/15 -> 20
D11: % of averag forage production, for SPI values -1, -2 in the winter and summer seasons | J11: Estimated Forage Reduction (% of Average) | N11: 0.58 | O11: 0.34 | P11: 0.72 | Q11: 0.52 | S11: Yearlings | T11: 150 | U11: 40
D12: Winter | F12: Summer | J12: *Winter = October - May; Summer = June - September | S12: Total Herd AU's | T12: =T9+(T10*1.75)+(T11*0.7) -> 440 | U12: =U9+(U10*1.75)+(U11*0.7) -> 363
D14: SPI -1 | E14: SPI -2 | F14: SPI -1 | G14: SPI -2
A15: Pasture Forage Production | D15: 0.58 | E15: 0.34 | F15: 0.72 | G15: 0.52 | J15: Drought Factors | M15: Grazing Plan
A16: Pasture | B16: Acreage | C16: Average Forage Production (lbs/A) | D16: SPI - 1 Forage Production (lbs/A) | E16: SPI - 2 Forage Production (lbs/A) | F16: SPI - 1 Forage Production (lbs/A) | G16: SPI - 2 Forage Production (lbs/A) | J16: SPI Value (pasture level) | M16: Pasture | N16: Pasture Rotation Sequence | O16: Planned % Utilization | P16: Water (dates when unavailable) | Q16: Seasonal Use Restrictions (dates) | S16: Number Days in Pasture | T16: First Day in Pasture | U16: Last Day in Pasture | V16: Maximum Seasonal Grazing Days | W16: Drought Season Affecting Forage Production | X16: Pasture Warnings | AC16: Herd Grazing Days Without Drought | AD16: Drought-Adjusted Seasonal Herd Grazing Days
J17: Winter Season | K17: Summer Season | AD17: Winter Season | AE17: Summer Season
A18: Riparian | B18: 3000 | C18: 850 | D18: =C18*$D$15 -> 493 | E18: =C18*$E$15 -> 289 | F18: =C18*$F$15 -> 612 | G18: =C18*$G$15 -> 442 | J18: 0 | K18: 0 | M18: Riparian | N18: 1 | O18: 0.2 | S18: 43 | T18: 2016-01-01 | U18: =IF(S18=0,(T18+0),(T18+S18)-1) -> 2016-02-12 | V18: =IF(AND(T18>=DATE(2016,6,1),(T18<=DATE(2016,12,31))),AE18,IF(AND(T18>=DATE(2015,6,1),(T18<=DATE(2015,12,31))),AE18,IF(AND(T18>=DATE(2017,6,1),(T18<=DATE(2017,12,31))),AE18,IF(AND(T18>=DATE(2018,6,1),(T18<=DATE(2018,12,31))),AE18,IF(AND(T18>=DATE(2019,6,1),(T18<=DATE(2019,12,31))),AE18,IF(AND(T18>=DATE(2020,6,1),(T18<=DATE(2020,12,31))),AE18,AD18)))))) -> 44.58041958 | W18: =IF(AND(T18>=DATE(2016,6,1),(T18<=DATE(2016,12,31))),"Summer",IF(AND(T18>=DATE(2015,6,1),(T18<=DATE(2015,12,31))),"Summer",IF(AND(T18>=DATE(2017,6,1),(T18<=DATE(2017,12,31))),"Summer",IF(AND(T18>=DATE(2018,6,1),(T18<=DATE(2018,12,31))),"Summer",IF(AND(T18>=DATE(2019,6,1),(T18<=DATE(2019,12,31))),"Summer",IF(AND(T18>=DATE(2020,6,1),(T18<=DATE(2020,12,31))),"Summer","Winter")))))) -> Winter | X18: =IF(S18>V18,"Exceeds Maximum Seasonal Grazing Days","") ->  | AC18: =IF(AND(T18>=DATE(2016,1,1),(T18<=DATE(2016,5,31))),(((B18*C18)*O18/26)/$T$12),IF(AND(T18>=DATE(2016,6,1),(T18<=DATE(2016,12,31))),(((B18*C18)*O18/26)/$U$12),IF(AND(T18>=DATE(2015,1,1),(T18<=DATE(2015,5,31))),(((B18*C18)*O18/26)/$T$12),IF(AND(T18>=DATE(2015,6,1),(T18<=DATE(2015,12,31))),(((B18*C18)*O18/26)/$U$12),IF(AND(T18>=DATE(2017,1,1),(T18<=DATE(2017,5,31))),(((B18*C18)*O18/26)/$T$12),IF(AND(T18>=DATE(2017,6,1),(T18<=DATE(2017,12,31))),(((B18*C18)*O18/26)/$U$12),IF(AND(T18>=DATE(2018,1,1),(T18<=DATE(2018,5,31))),(((B18*C18)*O18/26)/$T$12),IF(AND(T18>=DATE(2018,6,1),(T18<=DATE(2018,12,31))),(((B18*C18)*O18/26)/$U$12),IF(AND(T18>=DATE(2019,1,1),(T18<=DATE(2019,5,31))),(((B18*C18)*O18/26)/$T$12),IF(AND(T18>=DATE(2019,6,1),(T18<=DATE(2019,12,31))),(((B18*C18)*O18/26)/$U$12),IF(AND(T18>=DATE(2020,1,1),(T18<=DATE(2020,5,31))),(((B18*C18)*O18/26)/$T$12),IF(AND(T18>=DATE(2020,6,1),(T18<=DATE(2020,12,31))),(((B18*C18)*O18/26)/$U$12))))))))))))) -> 44.58041958 | AD18: =IF(J18=0,AC18,IF(J18=-1,AC18*0.58,IF(J18=-2,(AC18*0.34),"NA"))) -> 44.58041958 | AE18: =IF(K18=0,AC18,IF(K18=-1,AC18*0.72,IF(K18=-2,(AC18*0.52),"NA"))) -> 44.58041958
A19: Headquarters | B19: 800 | C19: 700 | D19: 406 | E19: 238 | F19: 504 | G19: 364 | J19: 0 | K19: 0 | M19: Headquarters | N19: 2 | O19: 0.4 | S19: 19 | T19: =IF(S19=0,U18,U18+1) -> 2016-02-13 | U19: =IF(S19=0,(T19+0),(T19+S19)-1) -> 2016-03-02 | V19: =IF(AND(T19>=DATE(2016,6,1),(T19<=DATE(2016,12,31))),AE19,IF(AND(T19>=DATE(2015,6,1),(T19<=DATE(2015,12,31))),AE19,IF(AND(T19>=DATE(2017,6,1),(T19<=DATE(2017,12,31))),AE19,IF(AND(T19>=DATE(2018,6,1),(T19<=DATE(2018,12,31))),AE19,IF(AND(T19>=DATE(2019,6,1),(T19<=DATE(2019,12,31))),AE19,IF(AND(T19>=DATE(2020,6,1),(T19<=DATE(2020,12,31))),AE19,AD19)))))) -> 19.58041958 | W19: =IF(AND(T19>=DATE(2016,6,1),(T19<=DATE(2016,12,31))),"Summer",IF(AND(T19>=DATE(2015,6,1),(T19<=DATE(2015,12,31))),"Summer",IF(AND(T19>=DATE(2017,6,1),(T19<=DATE(2017,12,31))),"Summer",IF(AND(T19>=DATE(2018,6,1),(T19<=DATE(2018,12,31))),"Summer",IF(AND(T19>=DATE(2019,6,1),(T19<=DATE(2019,12,31))),"Summer",IF(AND(T19>=DATE(2020,6,1),(T19<=DATE(2020,12,31))),"Summer","Winter")))))) -> Winter | X19: =IF(S19>V19,"Exceeds Maximum Seasonal Grazing Days","") ->  | AC19: =IF(AND(T19>=DATE(2016,1,1),(T19<=DATE(2016,5,31))),(((B19*C19)*O19/26)/$T$12),IF(AND(T19>=DATE(2016,6,1),(T19<=DATE(2016,12,31))),(((B19*C19)*O19/26)/$U$12),IF(AND(T19>=DATE(2015,1,1),(T19<=DATE(2015,5,31))),(((B19*C19)*O19/26)/$T$12),IF(AND(T19>=DATE(2015,6,1),(T19<=DATE(2015,12,31))),(((B19*C19)*O19/26)/$U$12),IF(AND(T19>=DATE(2017,1,1),(T19<=DATE(2017,5,31))),(((B19*C19)*O19/26)/$T$12),IF(AND(T19>=DATE(2017,6,1),(T19<=DATE(2017,12,31))),(((B19*C19)*O19/26)/$U$12),IF(AND(T19>=DATE(2018,1,1),(T19<=DATE(2018,5,31))),(((B19*C19)*O19/26)/$T$12),IF(AND(T19>=DATE(2018,6,1),(T19<=DATE(2018,12,31))),(((B19*C19)*O19/26)/$U$12),IF(AND(T19>=DATE(2019,1,1),(T19<=DATE(2019,5,31))),(((B19*C19)*O19/26)/$T$12),IF(AND(T19>=DATE(2019,6,1),(T19<=DATE(2019,12,31))),(((B19*C19)*O19/26)/$U$12),IF(AND(T19>=DATE(2020,1,1),(T19<=DATE(2020,5,31))),(((B19*C19)*O19/26)/$T$12),IF(AND(T19>=DATE(2020,6,1),(T19<=DATE(2020,12,31))),(((B19*C19)*O19/26)/$U$12))))))))))))) -> 19.58041958 | AD19: =IF(J19=0,AC19,IF(J19=-1,AC19*0.58,IF(J19=-2,(AC19*0.34),"NA"))) -> 19.58041958 | AE19: =IF(K19=0,AC19,IF(K19=-1,AC19*0.72,IF(K19=-2,(AC19*0.52),"NA"))) -> 19.58041958
A20: Pipeline | B20: 4000 | C20: 550 | D20: 319 | E20: 187 | F20: 396 | G20: 286 | J20: 0 | K20: 0 | M20: Pipeline | N20: 3 | O20: 0.4 | S20: 60 | T20: =IF(S20=0,U19,U19+1) -> 2016-03-03 | U20: 2016-05-01 | V20: 76.92307692 | W20: Winter | AC20: 76.92307692 | AD20: 76.92307692 | AE20: 76.92307692
A21: Wydot | B21: 3900 | C21: 650 | D21: 377 | E21: 221 | F21: 468 | G21: 338 | J21: 0 | K21: 0 | M21: Wydot | N21: 4 | O21: 0.4 | S21: 50 | T21: 2016-05-02 | U21: 2016-06-20 | V21: 88.63636364 | W21: Winter | AC21: 88.63636364 | AD21: 88.63636364 | AE21: 88.63636364
A22: Son of A Gun | B22: 2800 | C22: 600 | D22: 348 | E22: 204 | F22: 432 | G22: 312 | J22: 0 | K22: 0 | M22: Son of A Gun | N22: 5 | O22: 0.4 | S22: 40 | T22: 2016-06-21 | U22: 2016-07-30 | V22: 71.20152575 | W22: Summer | AC22: 71.20152575 | AD22: 71.20152575 | AE22: 71.20152575
A23: Miners Camp* | B23: 4800 | C23: 300 | D23: 174 | E23: 102 | F23: 216 | G23: 156 | J23: 0 | K23: 0 | M23: Miners Camp** | N23: 6 | O23: 0.2 | S23: 25 | T23: 2016-07-31 | U23: 2016-08-24 | V23: 30.51493961 | W23: Summer | AC23: 30.51493961 | AD23: 30.51493961 | AE23: 30.51493961
A24: Timber Top* | B24: 3500 | C24: 325 | D24: 188.5 | E24: 110.5 | F24: 234 | G24: 169 | J24: 0 | K24: 0 | M24: Timber Top** | N24: 7 | O24: 0 | S24: 0 | T24: 2016-08-24 | U24: 2016-08-24 | V24: 0 | W24: Summer | AC24: 0 | AD24: 0 | AE24: 0
A25: Preacher Tom | B25: 4000 | C25: 550 | D25: 319 | E25: 187 | F25: 396 | G25: 286 | J25: 0 | K25: 0 | M25: Preacher Tom | N25: 8 | O25: 0.4 | S25: 76 | T25: 2016-08-25 | U25: 2016-11-08 | V25: 93.24009324 | W25: Summer | AC25: 93.24009324 | AD25: 93.24009324 | AE25: 93.24009324
A26: Old Homestead | B26: 3200 | C26: 600 | D26: 348 | E26: 204 | F26: 432 | G26: 312 | J26: 0 | K26: 0 | M26: Old Homestead | N26: 9 | O26: 0.4 | S26: 52 | T26: 2016-11-09 | U26: =IF(S26=0,(T26+0),(T26+S26)-1) -> 2016-12-30 | V26: 81.37317228 | W26: Summer | AC26: 81.37317228 | AD26: 81.37317228 | AE26: 81.37317228
M27: Total | S27: =SUM(S18:S26) -> 365 | V27: =SUM(V18:V26) -> 506.0500106 | AC27: =SUM(AC18:AC26) -> 506.0500106 | AD27: =SUM(AD18:AD26) -> 506.0500106 | AE27: =SUM(AE18:AE26) -> 506.0500106
M28: **Rest rotation every other year, summer use | S28: =IF(S27>365,"Exceeds 365 days in grazing year!","") ->  | V28: =IF(V27<365,"Less than 365 days of available forage!","") -> 
J36: Instructions for Drought Scenario Planning
J37: 1. Input user defined data into open white boxes
J38: 2. Enter SPI value for winter and summer for each pasture
J39: 3. Enter Unavailable water dates for each pasture
J40: 4. Enter use restriction dates for each pasture
J41: 5. Examine warnings for use levels exceeded (red text)
J42: 6. Consider adjustments to maintain use within allowable levels. Consider the following:
J43: a. Herd size and composition
J44: b. Days in pasture
J45: c. Pasture rotation sequence
J46: d. Planned utilization
J47: Other Features
J48: 1. "Pasture Sequence Re-Sort" button on the screen will re-arrange the pastures and dates according to the pasture rotation sequence you selected if you decide to make changes to the original sequence (cannot undo this action except by hand).
J49: 2. Saving scenario solutions in spreadsheet tabs: Identical copies of the tool with the specific scenario details are saved in different spreadsheet tabs located at the bottom of the window; these can be used to save different possible solutions to a single drought scenario. These are labeled by default as "Solution 1", "Solution 2", etc.
J50: 3. Worksheet: used in conjunction with this tool to identify solutions and determine whether they will need consultation and approval with updated AOI and deviation from AMP.

Sheet Solution 2
J7: S | S7: Herd Composition
J8: Reference Values for Drought Severity Effects on Seasonal Forage Production | T8: Jan - May | U8: June - Dec
N9: Winter* | P9: Summer | S9: Cows | T9: 300 | U9: 300
J10: Standard Precipitation Index (SPI) | N10: -1 | O10: -2 | P10: -1 | Q10: -2 | S10: Bulls | T10: =T9/15 -> 20 | U10: =U9/15 -> 20
D11: % of averag forage production, for SPI values -1, -2 in the winter and summer seasons | J11: Estimated Forage Reduction (% of Average) | N11: 0.58 | O11: 0.34 | P11: 0.72 | Q11: 0.52 | S11: Yearlings | T11: 150 | U11: 40
D12: Winter | F12: Summer | J12: *Winter = October - May; Summer = June - September | S12: Total Herd AU's | T12: =T9+(T10*1.75)+(T11*0.7) -> 440 | U12: =U9+(U10*1.75)+(U11*0.7) -> 363
D14: SPI -1 | E14: SPI -2 | F14: SPI -1 | G14: SPI -2
A15: Pasture Forage Production | D15: 0.58 | E15: 0.34 | F15: 0.72 | G15: 0.52 | J15: Drought Factors | M15: Grazing Plan
A16: Pasture | B16: Acreage | C16: Average Forage Production (lbs/A) | D16: SPI - 1 Forage Production (lbs/A) | E16: SPI - 2 Forage Production (lbs/A) | F16: SPI - 1 Forage Production (lbs/A) | G16: SPI - 2 Forage Production (lbs/A) | J16: SPI Value (pasture level) | M16: Pasture | N16: Pasture Rotation Sequence | O16: Planned % Utilization | P16: Water (dates when unavailable) | Q16: Seasonal Use Restrictions (dates) | S16: Number Days in Pasture | T16: First Day in Pasture | U16: Last Day in Pasture | V16: Maximum Seasonal Grazing Days | W16: Drought Season Affecting Forage Production | X16: Pasture Warnings | AC16: Herd Grazing Days Without Drought | AD16: Drought-Adjusted Seasonal Herd Grazing Days
J17: Winter Season | K17: Summer Season | AD17: Winter Season | AE17: Summer Season
A18: Riparian | B18: 3000 | C18: 850 | D18: =C18*$D$15 -> 493 | E18: =C18*$E$15 -> 289 | F18: =C18*$F$15 -> 612 | G18: =C18*$G$15 -> 442 | J18: 0 | K18: 0 | M18: Riparian | N18: 1 | O18: 0.2 | S18: 43 | T18: 2016-01-01 | U18: =IF(S18=0,(T18+0),(T18+S18)-1) -> 2016-02-12 | V18: =IF(AND(T18>=DATE(2016,6,1),(T18<=DATE(2016,12,31))),AE18,IF(AND(T18>=DATE(2015,6,1),(T18<=DATE(2015,12,31))),AE18,IF(AND(T18>=DATE(2017,6,1),(T18<=DATE(2017,12,31))),AE18,IF(AND(T18>=DATE(2018,6,1),(T18<=DATE(2018,12,31))),AE18,IF(AND(T18>=DATE(2019,6,1),(T18<=DATE(2019,12,31))),AE18,IF(AND(T18>=DATE(2020,6,1),(T18<=DATE(2020,12,31))),AE18,AD18)))))) -> 44.58041958 | W18: =IF(AND(T18>=DATE(2016,6,1),(T18<=DATE(2016,12,31))),"Summer",IF(AND(T18>=DATE(2015,6,1),(T18<=DATE(2015,12,31))),"Summer",IF(AND(T18>=DATE(2017,6,1),(T18<=DATE(2017,12,31))),"Summer",IF(AND(T18>=DATE(2018,6,1),(T18<=DATE(2018,12,31))),"Summer",IF(AND(T18>=DATE(2019,6,1),(T18<=DATE(2019,12,31))),"Summer",IF(AND(T18>=DATE(2020,6,1),(T18<=DATE(2020,12,31))),"Summer","Winter")))))) -> Winter | X18: =IF(S18>V18,"Exceeds Maximum Seasonal Grazing Days","") ->  | AC18: =IF(AND(T18>=DATE(2016,1,1),(T18<=DATE(2016,5,31))),(((B18*C18)*O18/26)/$T$12),IF(AND(T18>=DATE(2016,6,1),(T18<=DATE(2016,12,31))),(((B18*C18)*O18/26)/$U$12),IF(AND(T18>=DATE(2015,1,1),(T18<=DATE(2015,5,31))),(((B18*C18)*O18/26)/$T$12),IF(AND(T18>=DATE(2015,6,1),(T18<=DATE(2015,12,31))),(((B18*C18)*O18/26)/$U$12),IF(AND(T18>=DATE(2017,1,1),(T18<=DATE(2017,5,31))),(((B18*C18)*O18/26)/$T$12),IF(AND(T18>=DATE(2017,6,1),(T18<=DATE(2017,12,31))),(((B18*C18)*O18/26)/$U$12),IF(AND(T18>=DATE(2018,1,1),(T18<=DATE(2018,5,31))),(((B18*C18)*O18/26)/$T$12),IF(AND(T18>=DATE(2018,6,1),(T18<=DATE(2018,12,31))),(((B18*C18)*O18/26)/$U$12),IF(AND(T18>=DATE(2019,1,1),(T18<=DATE(2019,5,31))),(((B18*C18)*O18/26)/$T$12),IF(AND(T18>=DATE(2019,6,1),(T18<=DATE(2019,12,31))),(((B18*C18)*O18/26)/$U$12),IF(AND(T18>=DATE(2020,1,1),(T18<=DATE(2020,5,31))),(((B18*C18)*O18/26)/$T$12),IF(AND(T18>=DATE(2020,6,1),(T18<=DATE(2020,12,31))),(((B18*C18)*O18/26)/$U$12))))))))))))) -> 44.58041958 | AD18: =IF(J18=0,AC18,IF(J18=-1,AC18*0.58,IF(J18=-2,(AC18*0.34),"NA"))) -> 44.58041958 | AE18: =IF(K18=0,AC18,IF(K18=-1,AC18*0.72,IF(K18=-2,(AC18*0.52),"NA"))) -> 44.58041958
A19: Headquarters | B19: 800 | C19: 700 | D19: 406 | E19: 238 | F19: 504 | G19: 364 | J19: 0 | K19: 0 | M19: Headquarters | N19: 2 | O19: 0.4 | S19: 19 | T19: =IF(S19=0,U18,U18+1) -> 2016-02-13 | U19: =IF(S19=0,(T19+0),(T19+S19)-1) -> 2016-03-02 | V19: =IF(AND(T19>=DATE(2016,6,1),(T19<=DATE(2016,12,31))),AE19,IF(AND(T19>=DATE(2015,6,1),(T19<=DATE(2015,12,31))),AE19,IF(AND(T19>=DATE(2017,6,1),(T19<=DATE(2017,12,31))),AE19,IF(AND(T19>=DATE(2018,6,1),(T19<=DATE(2018,12,31))),AE19,IF(AND(T19>=DATE(2019,6,1),(T19<=DATE(2019,12,31))),AE19,IF(AND(T19>=DATE(2020,6,1),(T19<=DATE(2020,12,31))),AE19,AD19)))))) -> 19.58041958 | W19: =IF(AND(T19>=DATE(2016,6,1),(T19<=DATE(2016,12,31))),"Summer",IF(AND(T19>=DATE(2015,6,1),(T19<=DATE(2015,12,31))),"Summer",IF(AND(T19>=DATE(2017,6,1),(T19<=DATE(2017,12,31))),"Summer",IF(AND(T19>=DATE(2018,6,1),(T19<=DATE(2018,12,31))),"Summer",IF(AND(T19>=DATE(2019,6,1),(T19<=DATE(2019,12,31))),"Summer",IF(AND(T19>=DATE(2020,6,1),(T19<=DATE(2020,12,31))),"Summer","Winter")))))) -> Winter | X19: =IF(S19>V19,"Exceeds Maximum Seasonal Grazing Days","") ->  | AC19: =IF(AND(T19>=DATE(2016,1,1),(T19<=DATE(2016,5,31))),(((B19*C19)*O19/26)/$T$12),IF(AND(T19>=DATE(2016,6,1),(T19<=DATE(2016,12,31))),(((B19*C19)*O19/26)/$U$12),IF(AND(T19>=DATE(2015,1,1),(T19<=DATE(2015,5,31))),(((B19*C19)*O19/26)/$T$12),IF(AND(T19>=DATE(2015,6,1),(T19<=DATE(2015,12,31))),(((B19*C19)*O19/26)/$U$12),IF(AND(T19>=DATE(2017,1,1),(T19<=DATE(2017,5,31))),(((B19*C19)*O19/26)/$T$12),IF(AND(T19>=DATE(2017,6,1),(T19<=DATE(2017,12,31))),(((B19*C19)*O19/26)/$U$12),IF(AND(T19>=DATE(2018,1,1),(T19<=DATE(2018,5,31))),(((B19*C19)*O19/26)/$T$12),IF(AND(T19>=DATE(2018,6,1),(T19<=DATE(2018,12,31))),(((B19*C19)*O19/26)/$U$12),IF(AND(T19>=DATE(2019,1,1),(T19<=DATE(2019,5,31))),(((B19*C19)*O19/26)/$T$12),IF(AND(T19>=DATE(2019,6,1),(T19<=DATE(2019,12,31))),(((B19*C19)*O19/26)/$U$12),IF(AND(T19>=DATE(2020,1,1),(T19<=DATE(2020,5,31))),(((B19*C19)*O19/26)/$T$12),IF(AND(T19>=DATE(2020,6,1),(T19<=DATE(2020,12,31))),(((B19*C19)*O19/26)/$U$12))))))))))))) -> 19.58041958 | AD19: =IF(J19=0,AC19,IF(J19=-1,AC19*0.58,IF(J19=-2,(AC19*0.34),"NA"))) -> 19.58041958 | AE19: =IF(K19=0,AC19,IF(K19=-1,AC19*0.72,IF(K19=-2,(AC19*0.52),"NA"))) -> 19.58041958
A20: Pipeline | B20: 4000 | C20: 550 | D20: 319 | E20: 187 | F20: 396 | G20: 286 | J20: 0 | K20: 0 | M20: Pipeline | N20: 3 | O20: 0.4 | S20: 60 | T20: =IF(S20=0,U19,U19+1) -> 2016-03-03 | U20: 2016-05-01 | V20: 76.92307692 | W20: Winter | AC20: 76.92307692 | AD20: 76.92307692 | AE20: 76.92307692
A21: Wydot | B21: 3900 | C21: 650 | D21: 377 | E21: 221 | F21: 468 | G21: 338 | J21: 0 | K21: 0 | M21: Wydot | N21: 4 | O21: 0.4 | S21: 50 | T21: 2016-05-02 | U21: 2016-06-20 | V21: 88.63636364 | W21: Winter | AC21: 88.63636364 | AD21: 88.63636364 | AE21: 88.63636364
A22: Son of A Gun | B22: 2800 | C22: 600 | D22: 348 | E22: 204 | F22: 432 | G22: 312 | J22: 0 | K22: 0 | M22: Son of A Gun | N22: 5 | O22: 0.4 | S22: 40 | T22: 2016-06-21 | U22: 2016-07-30 | V22: 71.20152575 | W22: Summer | AC22: 71.20152575 | AD22: 71.20152575 | AE22: 71.20152575
A23: Miners Camp* | B23: 4800 | C23: 300 | D23: 174 | E23: 102 | F23: 216 | G23: 156 | J23: 0 | K23: 0 | M23: Miners Camp** | N23: 6 | O23: 0.2 | S23: 25 | T23: 2016-07-31 | U23: 2016-08-24 | V23: 30.51493961 | W23: Summer | AC23: 30.51493961 | AD23: 30.51493961 | AE23: 30.51493961
A24: Timber Top* | B24: 3500 | C24: 325 | D24: 188.5 | E24: 110.5 | F24: 234 | G24: 169 | J24: 0 | K24: 0 | M24: Timber Top** | N24: 7 | O24: 0 | S24: 0 | T24: 2016-08-24 | U24: 2016-08-24 | V24: 0 | W24: Summer | AC24: 0 | AD24: 0 | AE24: 0
A25: Preacher Tom | B25: 4000 | C25: 550 | D25: 319 | E25: 187 | F25: 396 | G25: 286 | J25: 0 | K25: 0 | M25: Preacher Tom | N25: 8 | O25: 0.4 | S25: 76 | T25: 2016-08-25 | U25: 2016-11-08 | V25: 93.24009324 | W25: Summer | AC25: 93.24009324 | AD25: 93.24009324 | AE25: 93.24009324
A26: Old Homestead | B26: 3200 | C26: 600 | D26: 348 | E26: 204 | F26: 432 | G26: 312 | J26: 0 | K26: 0 | M26: Old Homestead | N26: 9 | O26: 0.4 | S26: 52 | T26: 2016-11-09 | U26: =IF(S26=0,(T26+0),(T26+S26)-1) -> 2016-12-30 | V26: 81.37317228 | W26: Summer | AC26: 81.37317228 | AD26: 81.37317228 | AE26: 81.37317228
M27: Total | S27: =SUM(S18:S26) -> 365 | V27: =SUM(V18:V26) -> 506.0500106 | AC27: =SUM(AC18:AC26) -> 506.0500106 | AD27: =SUM(AD18:AD26) -> 506.0500106 | AE27: =SUM(AE18:AE26) -> 506.0500106
M28: **Rest rotation every other year, summer use | S28: =IF(S27>365,"Exceeds 365 days in grazing year!","") ->  | V28: =IF(V27<365,"Less than 365 days of available forage!","") -> 
J36: Instructions for Drought Scenario Planning
J37: 1. Input user defined data into open white boxes
J38: 2. Enter SPI value for winter and summer for each pasture
J39: 3. Enter Unavailable water dates for each pasture
J40: 4. Enter use restriction dates for each pasture
J41: 5. Examine warnings for use levels exceeded (red text)
J42: 6. Consider adjustments to maintain use within allowable levels. Consider the following:
J43: a. Herd size and composition
J44: b. Days in pasture
J45: c. Pasture rotation sequence
J46: d. Planned utilization
J47: Other Features
J48: 1. "Pasture Sequence Re-Sort" button on the screen will re-arrange the pastures and dates according to the pasture rotation sequence you selected if you decide to make changes to the original sequence (cannot undo this action except by hand).
J49: 2. Saving scenario solutions in spreadsheet tabs: Identical copies of the tool with the specific scenario details are saved in different spreadsheet tabs located at the bottom of the window; these can be used to save different possible solutions to a single drought scenario. These are labeled by default as "Solution 1", "Solution 2", etc.
J50: 3. Worksheet: used in conjunction with this tool to identify solutions and determine whether they will need consultation and approval with updated AOI and deviation from AMP.

Sheet Solution 3
J7: S | S7: Herd Composition
J8: Reference Values for Drought Severity Effects on Seasonal Forage Production | T8: Jan - May | U8: June - Dec
N9: Winter* | P9: Summer | S9: Cows | T9: 300 | U9: 300
J10: Standard Precipitation Index (SPI) | N10: -1 | O10: -2 | P10: -1 | Q10: -2 | S10: Bulls | T10: =T9/15 -> 20 | U10: =U9/15 -> 20
D11: % of averag forage production, for SPI values -1, -2 in the winter and summer seasons | J11: Estimated Forage Reduction (% of Average) | N11: 0.58 | O11: 0.34 | P11: 0.72 | Q11: 0.52 | S11: Yearlings | T11: 150 | U11: 40
D12: Winter | F12: Summer | J12: *Winter = October - May; Summer = June - September | S12: Total Herd AU's | T12: =T9+(T10*1.75)+(T11*0.7) -> 440 | U12: =U9+(U10*1.75)+(U11*0.7) -> 363
D14: SPI -1 | E14: SPI -2 | F14: SPI -1 | G14: SPI -2
A15: Pasture Forage Production | D15: 0.58 | E15: 0.34 | F15: 0.72 | G15: 0.52 | J15: Drought Factors | M15: Grazing Plan
A16: Pasture | B16: Acreage | C16: Average Forage Production (lbs/A) | D16: SPI - 1 Forage Production (lbs/A) | E16: SPI - 2 Forage Production (lbs/A) | F16: SPI - 1 Forage Production (lbs/A) | G16: SPI - 2 Forage Production (lbs/A) | J16: SPI Value (pasture level) | M16: Pasture | N16: Pasture Rotation Sequence | O16: Planned % Utilization | P16: Water (dates when unavailable) | Q16: Seasonal Use Restrictions (dates) | S16: Number Days in Pasture | T16: First Day in Pasture | U16: Last Day in Pasture | V16: Maximum Seasonal Grazing Days | W16: Drought Season Affecting Forage Production | X16: Pasture Warnings | AC16: Herd Grazing Days Without Drought | AD16: Drought-Adjusted Seasonal Herd Grazing Days
J17: Winter Season | K17: Summer Season | AD17: Winter Season | AE17: Summer Season
A18: Riparian | B18: 3000 | C18: 850 | D18: =C18*$D$15 -> 493 | E18: =C18*$E$15 -> 289 | F18: =C18*$F$15 -> 612 | G18: =C18*$G$15 -> 442 | J18: 0 | K18: 0 | M18: Riparian | N18: 1 | O18: 0.2 | S18: 43 | T18: 2016-01-01 | U18: =IF(S18=0,(T18+0),(T18+S18)-1) -> 2016-02-12 | V18: =IF(AND(T18>=DATE(2016,6,1),(T18<=DATE(2016,12,31))),AE18,IF(AND(T18>=DATE(2015,6,1),(T18<=DATE(2015,12,31))),AE18,IF(AND(T18>=DATE(2017,6,1),(T18<=DATE(2017,12,31))),AE18,IF(AND(T18>=DATE(2018,6,1),(T18<=DATE(2018,12,31))),AE18,IF(AND(T18>=DATE(2019,6,1),(T18<=DATE(2019,12,31))),AE18,IF(AND(T18>=DATE(2020,6,1),(T18<=DATE(2020,12,31))),AE18,AD18)))))) -> 44.58041958 | W18: =IF(AND(T18>=DATE(2016,6,1),(T18<=DATE(2016,12,31))),"Summer",IF(AND(T18>=DATE(2015,6,1),(T18<=DATE(2015,12,31))),"Summer",IF(AND(T18>=DATE(2017,6,1),(T18<=DATE(2017,12,31))),"Summer",IF(AND(T18>=DATE(2018,6,1),(T18<=DATE(2018,12,31))),"Summer",IF(AND(T18>=DATE(2019,6,1),(T18<=DATE(2019,12,31))),"Summer",IF(AND(T18>=DATE(2020,6,1),(T18<=DATE(2020,12,31))),"Summer","Winter")))))) -> Winter | X18: =IF(S18>V18,"Exceeds Maximum Seasonal Grazing Days","") ->  | AC18: =IF(AND(T18>=DATE(2016,1,1),(T18<=DATE(2016,5,31))),(((B18*C18)*O18/26)/$T$12),IF(AND(T18>=DATE(2016,6,1),(T18<=DATE(2016,12,31))),(((B18*C18)*O18/26)/$U$12),IF(AND(T18>=DATE(2015,1,1),(T18<=DATE(2015,5,31))),(((B18*C18)*O18/26)/$T$12),IF(AND(T18>=DATE(2015,6,1),(T18<=DATE(2015,12,31))),(((B18*C18)*O18/26)/$U$12),IF(AND(T18>=DATE(2017,1,1),(T18<=DATE(2017,5,31))),(((B18*C18)*O18/26)/$T$12),IF(AND(T18>=DATE(2017,6,1),(T18<=DATE(2017,12,31))),(((B18*C18)*O18/26)/$U$12),IF(AND(T18>=DATE(2018,1,1),(T18<=DATE(2018,5,31))),(((B18*C18)*O18/26)/$T$12),IF(AND(T18>=DATE(2018,6,1),(T18<=DATE(2018,12,31))),(((B18*C18)*O18/26)/$U$12),IF(AND(T18>=DATE(2019,1,1),(T18<=DATE(2019,5,31))),(((B18*C18)*O18/26)/$T$12),IF(AND(T18>=DATE(2019,6,1),(T18<=DATE(2019,12,31))),(((B18*C18)*O18/26)/$U$12),IF(AND(T18>=DATE(2020,1,1),(T18<=DATE(2020,5,31))),(((B18*C18)*O18/26)/$T$12),IF(AND(T18>=DATE(2020,6,1),(T18<=DATE(2020,12,31))),(((B18*C18)*O18/26)/$U$12))))))))))))) -> 44.58041958 | AD18: =IF(J18=0,AC18,IF(J18=-1,AC18*0.58,IF(J18=-2,(AC18*0.34),"NA"))) -> 44.58041958 | AE18: =IF(K18=0,AC18,IF(K18=-1,AC18*0.72,IF(K18=-2,(AC18*0.52),"NA"))) -> 44.58041958
A19: Headquarters | B19: 800 | C19: 700 | D19: 406 | E19: 238 | F19: 504 | G19: 364 | J19: 0 | K19: 0 | M19: Headquarters | N19: 2 | O19: 0.4 | S19: 19 | T19: =IF(S19=0,U18,U18+1) -> 2016-02-13 | U19: =IF(S19=0,(T19+0),(T19+S19)-1) -> 2016-03-02 | V19: =IF(AND(T19>=DATE(2016,6,1),(T19<=DATE(2016,12,31))),AE19,IF(AND(T19>=DATE(2015,6,1),(T19<=DATE(2015,12,31))),AE19,IF(AND(T19>=DATE(2017,6,1),(T19<=DATE(2017,12,31))),AE19,IF(AND(T19>=DATE(2018,6,1),(T19<=DATE(2018,12,31))),AE19,IF(AND(T19>=DATE(2019,6,1),(T19<=DATE(2019,12,31))),AE19,IF(AND(T19>=DATE(2020,6,1),(T19<=DATE(2020,12,31))),AE19,AD19)))))) -> 19.58041958 | W19: =IF(AND(T19>=DATE(2016,6,1),(T19<=DATE(2016,12,31))),"Summer",IF(AND(T19>=DATE(2015,6,1),(T19<=DATE(2015,12,31))),"Summer",IF(AND(T19>=DATE(2017,6,1),(T19<=DATE(2017,12,31))),"Summer",IF(AND(T19>=DATE(2018,6,1),(T19<=DATE(2018,12,31))),"Summer",IF(AND(T19>=DATE(2019,6,1),(T19<=DATE(2019,12,31))),"Summer",IF(AND(T19>=DATE(2020,6,1),(T19<=DATE(2020,12,31))),"Summer","Winter")))))) -> Winter | X19: =IF(S19>V19,"Exceeds Maximum Seasonal Grazing Days","") ->  | AC19: =IF(AND(T19>=DATE(2016,1,1),(T19<=DATE(2016,5,31))),(((B19*C19)*O19/26)/$T$12),IF(AND(T19>=DATE(2016,6,1),(T19<=DATE(2016,12,31))),(((B19*C19)*O19/26)/$U$12),IF(AND(T19>=DATE(2015,1,1),(T19<=DATE(2015,5,31))),(((B19*C19)*O19/26)/$T$12),IF(AND(T19>=DATE(2015,6,1),(T19<=DATE(2015,12,31))),(((B19*C19)*O19/26)/$U$12),IF(AND(T19>=DATE(2017,1,1),(T19<=DATE(2017,5,31))),(((B19*C19)*O19/26)/$T$12),IF(AND(T19>=DATE(2017,6,1),(T19<=DATE(2017,12,31))),(((B19*C19)*O19/26)/$U$12),IF(AND(T19>=DATE(2018,1,1),(T19<=DATE(2018,5,31))),(((B19*C19)*O19/26)/$T$12),IF(AND(T19>=DATE(2018,6,1),(T19<=DATE(2018,12,31))),(((B19*C19)*O19/26)/$U$12),IF(AND(T19>=DATE(2019,1,1),(T19<=DATE(2019,5,31))),(((B19*C19)*O19/26)/$T$12),IF(AND(T19>=DATE(2019,6,1),(T19<=DATE(2019,12,31))),(((B19*C19)*O19/26)/$U$12),IF(AND(T19>=DATE(2020,1,1),(T19<=DATE(2020,5,31))),(((B19*C19)*O19/26)/$T$12),IF(AND(T19>=DATE(2020,6,1),(T19<=DATE(2020,12,31))),(((B19*C19)*O19/26)/$U$12))))))))))))) -> 19.58041958 | AD19: =IF(J19=0,AC19,IF(J19=-1,AC19*0.58,IF(J19=-2,(AC19*0.34),"NA"))) -> 19.58041958 | AE19: =IF(K19=0,AC19,IF(K19=-1,AC19*0.72,IF(K19=-2,(AC19*0.52),"NA"))) -> 19.58041958
A20: Pipeline | B20: 4000 | C20: 550 | D20: 319 | E20: 187 | F20: 396 | G20: 286 | J20: 0 | K20: 0 | M20: Pipeline | N20: 3 | O20: 0.4 | S20: 60 | T20: =IF(S20=0,U19,U19+1) -> 2016-03-03 | U20: 2016-05-01 | V20: 76.92307692 | W20: Winter | AC20: 76.92307692 | AD20: 76.92307692 | AE20: 76.92307692
A21: Wydot | B21: 3900 | C21: 650 | D21: 377 | E21: 221 | F21: 468 | G21: 338 | J21: 0 | K21: 0 | M21: Wydot | N21: 4 | O21: 0.4 | S21: 50 | T21: 2016-05-02 | U21: 2016-06-20 | V21: 88.63636364 | W21: Winter | AC21: 88.63636364 | AD21: 88.63636364 | AE21: 88.63636364
A22: Son of A Gun | B22: 2800 | C22: 600 | D22: 348 | E22: 204 | F22: 432 | G22: 312 | J22: 0 | K22: 0 | M22: Son of A Gun | N22: 5 | O22: 0.4 | S22: 40 | T22: 2016-06-21 | U22: 2016-07-30 | V22: 71.20152575 | W22: Summer | AC22: 71.20152575 | AD22: 71.20152575 | AE22: 71.20152575
A23: Miners Camp* | B23: 4800 | C23: 300 | D23: 174 | E23: 102 | F23: 216 | G23: 156 | J23: 0 | K23: 0 | M23: Miners Camp** | N23: 6 | O23: 0.2 | S23: 25 | T23: 2016-07-31 | U23: 2016-08-24 | V23: 30.51493961 | W23: Summer | AC23: 30.51493961 | AD23: 30.51493961 | AE23: 30.51493961
A24: Timber Top* | B24: 3500 | C24: 325 | D24: 188.5 | E24: 110.5 | F24: 234 | G24: 169 | J24: 0 | K24: 0 | M24: Timber Top** | N24: 7 | O24: 0 | S24: 0 | T24: 2016-08-24 | U24: 2016-08-24 | V24: 0 | W24: Summer | AC24: 0 | AD24: 0 | AE24: 0
A25: Preacher Tom | B25: 4000 | C25: 550 | D25: 319 | E25: 187 | F25: 396 | G25: 286 | J25: 0 | K25: 0 | M25: Preacher Tom | N25: 8 | O25: 0.4 | S25: 76 | T25: 2016-08-25 | U25: 2016-11-08 | V25: 93.24009324 | W25: Summer | AC25: 93.24009324 | AD25: 93.24009324 | AE25: 93.24009324
A26: Old Homestead | B26: 3200 | C26: 600 | D26: 348 | E26: 204 | F26: 432 | G26: 312 | J26: 0 | K26: 0 | M26: Old Homestead | N26: 9 | O26: 0.4 | S26: 52 | T26: 2016-11-09 | U26: =IF(S26=0,(T26+0),(T26+S26)-1) -> 2016-12-30 | V26: 81.37317228 | W26: Summer | AC26: 81.37317228 | AD26: 81.37317228 | AE26: 81.37317228
M27: Total | S27: =SUM(S18:S26) -> 365 | V27: =SUM(V18:V26) -> 506.0500106 | AC27: =SUM(AC18:AC26) -> 506.0500106 | AD27: =SUM(AD18:AD26) -> 506.0500106 | AE27: =SUM(AE18:AE26) -> 506.0500106
M28: **Rest rotation every other year, summer use | S28: =IF(S27>365,"Exceeds 365 days in grazing year!","") ->  | V28: =IF(V27<365,"Less than 365 days of available forage!","") -> 
J36: Instructions for Drought Scenario Planning
J37: 1. Input user defined data into open white boxes
J38: 2. Enter SPI value for winter and summer for each pasture
J39: 3. Enter Unavailable water dates for each pasture
J40: 4. Enter use restriction dates for each pasture
J41: 5. Examine warnings for use levels exceeded (red text)
J42: 6. Consider adjustments to maintain use within allowable levels. Consider the following:
J43: a. Herd size and composition
J44: b. Days in pasture
J45: c. Pasture rotation sequence
J46: d. Planned utilization
J47: Other Features
J48: 1. "Pasture Sequence Re-Sort" button on the screen will re-arrange the pastures and dates according to the pasture rotation sequence you selected if you decide to make changes to the original sequence (cannot undo this action except by hand).
J49: 2. Saving scenario solutions in spreadsheet tabs: Identical copies of the tool with the specific scenario details are saved in different spreadsheet tabs located at the bottom of the window; these can be used to save different possible solutions to a single drought scenario. These are labeled by default as "Solution 1", "Solution 2", etc.
J50: 3. Worksheet: used in conjunction with this tool to identify solutions and determine whether they will need consultation and approval with updated AOI and deviation from AMP.

Sheet Solution 4
J7: S | S7: Herd Composition
J8: Reference Values for Drought Severity Effects on Seasonal Forage Production | T8: Jan - May | U8: June - Dec
N9: Winter* | P9: Summer | S9: Cows | T9: 300 | U9: 300
J10: Standard Precipitation Index (SPI) | N10: -1 | O10: -2 | P10: -1 | Q10: -2 | S10: Bulls | T10: =T9/15 -> 20 | U10: =U9/15 -> 20
D11: % of averag forage production, for SPI values -1, -2 in the winter and summer seasons | J11: Estimated Forage Reduction (% of Average) | N11: 0.58 | O11: 0.34 | P11: 0.72 | Q11: 0.52 | S11: Yearlings | T11: 150 | U11: 40
D12: Winter | F12: Summer | J12: *Winter = October - May; Summer = June - September | S12: Total Herd AU's | T12: =T9+(T10*1.75)+(T11*0.7) -> 440 | U12: =U9+(U10*1.75)+(U11*0.7) -> 363
D14: SPI -1 | E14: SPI -2 | F14: SPI -1 | G14: SPI -2
A15: Pasture Forage Production | D15: 0.58 | E15: 0.34 | F15: 0.72 | G15: 0.52 | J15: Drought Factors | M15: Grazing Plan
A16: Pasture | B16: Acreage | C16: Average Forage Production (lbs/A) | D16: SPI - 1 Forage Production (lbs/A) | E16: SPI - 2 Forage Production (lbs/A) | F16: SPI - 1 Forage Production (lbs/A) | G16: SPI - 2 Forage Production (lbs/A) | J16: SPI Value (pasture level) | M16: Pasture | N16: Pasture Rotation Sequence | O16: Planned % Utilization | P16: Water (dates when unavailable) | Q16: Seasonal Use Restrictions (dates) | S16: Number Days in Pasture | T16: First Day in Pasture | U16: Last Day in Pasture | V16: Maximum Seasonal Grazing Days | W16: Drought Season Affecting Forage Production | X16: Pasture Warnings | AC16: Herd Grazing Days Without Drought | AD16: Drought-Adjusted Seasonal Herd Grazing Days
J17: Winter Season | K17: Summer Season | AD17: Winter Season | AE17: Summer Season
A18: Riparian | B18: 3000 | C18: 850 | D18: =C18*$D$15 -> 493 | E18: =C18*$E$15 -> 289 | F18: =C18*$F$15 -> 612 | G18: =C18*$G$15 -> 442 | J18: 0 | K18: 0 | M18: Riparian | N18: 1 | O18: 0.2 | S18: 43 | T18: 2016-01-01 | U18: =IF(S18=0,(T18+0),(T18+S18)-1) -> 2016-02-12 | V18: =IF(AND(T18>=DATE(2016,6,1),(T18<=DATE(2016,12,31))),AE18,IF(AND(T18>=DATE(2015,6,1),(T18<=DATE(2015,12,31))),AE18,IF(AND(T18>=DATE(2017,6,1),(T18<=DATE(2017,12,31))),AE18,IF(AND(T18>=DATE(2018,6,1),(T18<=DATE(2018,12,31))),AE18,IF(AND(T18>=DATE(2019,6,1),(T18<=DATE(2019,12,31))),AE18,IF(AND(T18>=DATE(2020,6,1),(T18<=DATE(2020,12,31))),AE18,AD18)))))) -> 44.58041958 | W18: =IF(AND(T18>=DATE(2016,6,1),(T18<=DATE(2016,12,31))),"Summer",IF(AND(T18>=DATE(2015,6,1),(T18<=DATE(2015,12,31))),"Summer",IF(AND(T18>=DATE(2017,6,1),(T18<=DATE(2017,12,31))),"Summer",IF(AND(T18>=DATE(2018,6,1),(T18<=DATE(2018,12,31))),"Summer",IF(AND(T18>=DATE(2019,6,1),(T18<=DATE(2019,12,31))),"Summer",IF(AND(T18>=DATE(2020,6,1),(T18<=DATE(2020,12,31))),"Summer","Winter")))))) -> Winter | X18: =IF(S18>V18,"Exceeds Maximum Seasonal Grazing Days","") ->  | AC18: =IF(AND(T18>=DATE(2016,1,1),(T18<=DATE(2016,5,31))),(((B18*C18)*O18/26)/$T$12),IF(AND(T18>=DATE(2016,6,1),(T18<=DATE(2016,12,31))),(((B18*C18)*O18/26)/$U$12),IF(AND(T18>=DATE(2015,1,1),(T18<=DATE(2015,5,31))),(((B18*C18)*O18/26)/$T$12),IF(AND(T18>=DATE(2015,6,1),(T18<=DATE(2015,12,31))),(((B18*C18)*O18/26)/$U$12),IF(AND(T18>=DATE(2017,1,1),(T18<=DATE(2017,5,31))),(((B18*C18)*O18/26)/$T$12),IF(AND(T18>=DATE(2017,6,1),(T18<=DATE(2017,12,31))),(((B18*C18)*O18/26)/$U$12),IF(AND(T18>=DATE(2018,1,1),(T18<=DATE(2018,5,31))),(((B18*C18)*O18/26)/$T$12),IF(AND(T18>=DATE(2018,6,1),(T18<=DATE(2018,12,31))),(((B18*C18)*O18/26)/$U$12),IF(AND(T18>=DATE(2019,1,1),(T18<=DATE(2019,5,31))),(((B18*C18)*O18/26)/$T$12),IF(AND(T18>=DATE(2019,6,1),(T18<=DATE(2019,12,31))),(((B18*C18)*O18/26)/$U$12),IF(AND(T18>=DATE(2020,1,1),(T18<=DATE(2020,5,31))),(((B18*C18)*O18/26)/$T$12),IF(AND(T18>=DATE(2020,6,1),(T18<=DATE(2020,12,31))),(((B18*C18)*O18/26)/$U$12))))))))))))) -> 44.58041958 | AD18: =IF(J18=0,AC18,IF(J18=-1,AC18*0.58,IF(J18=-2,(AC18*0.34),"NA"))) -> 44.58041958 | AE18: =IF(K18=0,AC18,IF(K18=-1,AC18*0.72,IF(K18=-2,(AC18*0.52),"NA"))) -> 44.58041958
A19: Headquarters | B19: 800 | C19: 700 | D19: 406 | E19: 238 | F19: 504 | G19: 364 | J19: 0 | K19: 0 | M19: Headquarters | N19: 2 | O19: 0.4 | S19: 19 | T19: =IF(S19=0,U18,U18+1) -> 2016-02-13 | U19: =IF(S19=0,(T19+0),(T19+S19)-1) -> 2016-03-02 | V19: =IF(AND(T19>=DATE(2016,6,1),(T19<=DATE(2016,12,31))),AE19,IF(AND(T19>=DATE(2015,6,1),(T19<=DATE(2015,12,31))),AE19,IF(AND(T19>=DATE(2017,6,1),(T19<=DATE(2017,12,31))),AE19,IF(AND(T19>=DATE(2018,6,1),(T19<=DATE(2018,12,31))),AE19,IF(AND(T19>=DATE(2019,6,1),(T19<=DATE(2019,12,31))),AE19,IF(AND(T19>=DATE(2020,6,1),(T19<=DATE(2020,12,31))),AE19,AD19)))))) -> 19.58041958 | W19: =IF(AND(T19>=DATE(2016,6,1),(T19<=DATE(2016,12,31))),"Summer",IF(AND(T19>=DATE(2015,6,1),(T19<=DATE(2015,12,31))),"Summer",IF(AND(T19>=DATE(2017,6,1),(T19<=DATE(2017,12,31))),"Summer",IF(AND(T19>=DATE(2018,6,1),(T19<=DATE(2018,12,31))),"Summer",IF(AND(T19>=DATE(2019,6,1),(T19<=DATE(2019,12,31))),"Summer",IF(AND(T19>=DATE(2020,6,1),(T19<=DATE(2020,12,31))),"Summer","Winter")))))) -> Winter | X19: =IF(S19>V19,"Exceeds Maximum Seasonal Grazing Days","") ->  | AC19: =IF(AND(T19>=DATE(2016,1,1),(T19<=DATE(2016,5,31))),(((B19*C19)*O19/26)/$T$12),IF(AND(T19>=DATE(2016,6,1),(T19<=DATE(2016,12,31))),(((B19*C19)*O19/26)/$U$12),IF(AND(T19>=DATE(2015,1,1),(T19<=DATE(2015,5,31))),(((B19*C19)*O19/26)/$T$12),IF(AND(T19>=DATE(2015,6,1),(T19<=DATE(2015,12,31))),(((B19*C19)*O19/26)/$U$12),IF(AND(T19>=DATE(2017,1,1),(T19<=DATE(2017,5,31))),(((B19*C19)*O19/26)/$T$12),IF(AND(T19>=DATE(2017,6,1),(T19<=DATE(2017,12,31))),(((B19*C19)*O19/26)/$U$12),IF(AND(T19>=DATE(2018,1,1),(T19<=DATE(2018,5,31))),(((B19*C19)*O19/26)/$T$12),IF(AND(T19>=DATE(2018,6,1),(T19<=DATE(2018,12,31))),(((B19*C19)*O19/26)/$U$12),IF(AND(T19>=DATE(2019,1,1),(T19<=DATE(2019,5,31))),(((B19*C19)*O19/26)/$T$12),IF(AND(T19>=DATE(2019,6,1),(T19<=DATE(2019,12,31))),(((B19*C19)*O19/26)/$U$12),IF(AND(T19>=DATE(2020,1,1),(T19<=DATE(2020,5,31))),(((B19*C19)*O19/26)/$T$12),IF(AND(T19>=DATE(2020,6,1),(T19<=DATE(2020,12,31))),(((B19*C19)*O19/26)/$U$12))))))))))))) -> 19.58041958 | AD19: =IF(J19=0,AC19,IF(J19=-1,AC19*0.58,IF(J19=-2,(AC19*0.34),"NA"))) -> 19.58041958 | AE19: =IF(K19=0,AC19,IF(K19=-1,AC19*0.72,IF(K19=-2,(AC19*0.52),"NA"))) -> 19.58041958
A20: Pipeline | B20: 4000 | C20: 550 | D20: 319 | E20: 187 | F20: 396 | G20: 286 | J20: 0 | K20: 0 | M20: Pipeline | N20: 3 | O20: 0.4 | S20: 60 | T20: =IF(S20=0,U19,U19+1) -> 2016-03-03 | U20: 2016-05-01 | V20: 76.92307692 | W20: Winter | AC20: 76.92307692 | AD20: 76.92307692 | AE20: 76.92307692
A21: Wydot | B21: 3900 | C21: 650 | D21: 377 | E21: 221 | F21: 468 | G21: 338 | J21: 0 | K21: 0 | M21: Wydot | N21: 4 | O21: 0.4 | S21: 50 | T21: 2016-05-02 | U21: 2016-06-20 | V21: 88.63636364 | W21: Winter | AC21: 88.63636364 | AD21: 88.63636364 | AE21: 88.63636364
A22: Son of A Gun | B22: 2800 | C22: 600 | D22: 348 | E22: 204 | F22: 432 | G22: 312 | J22: 0 | K22: 0 | M22: Son of A Gun | N22: 5 | O22: 0.4 | S22: 40 | T22: 2016-06-21 | U22: 2016-07-30 | V22: 71.20152575 | W22: Summer | AC22: 71.20152575 | AD22: 71.20152575 | AE22: 71.20152575
A23: Miners Camp* | B23: 4800 | C23: 300 | D23: 174 | E23: 102 | F23: 216 | G23: 156 | J23: 0 | K23: 0 | M23: Miners Camp** | N23: 6 | O23: 0.2 | S23: 25 | T23: 2016-07-31 | U23: 2016-08-24 | V23: 30.51493961 | W23: Summer | AC23: 30.51493961 | AD23: 30.51493961 | AE23: 30.51493961
A24: Timber Top* | B24: 3500 | C24: 325 | D24: 188.5 | E24: 110.5 | F24: 234 | G24: 169 | J24: 0 | K24: 0 | M24: Timber Top** | N24: 7 | O24: 0 | S24: 0 | T24: 2016-08-24 | U24: 2016-08-24 | V24: 0 | W24: Summer | AC24: 0 | AD24: 0 | AE24: 0
A25: Preacher Tom | B25: 4000 | C25: 550 | D25: 319 | E25: 187 | F25: 396 | G25: 286 | J25: 0 | K25: 0 | M25: Preacher Tom | N25: 8 | O25: 0.4 | S25: 76 | T25: 2016-08-25 | U25: 2016-11-08 | V25: 93.24009324 | W25: Summer | AC25: 93.24009324 | AD25: 93.24009324 | AE25: 93.24009324
A26: Old Homestead | B26: 3200 | C26: 600 | D26: 348 | E26: 204 | F26: 432 | G26: 312 | J26: 0 | K26: 0 | M26: Old Homestead | N26: 9 | O26: 0.4 | S26: 52 | T26: 2016-11-09 | U26: =IF(S26=0,(T26+0),(T26+S26)-1) -> 2016-12-30 | V26: 81.37317228 | W26: Summer | AC26: 81.37317228 | AD26: 81.37317228 | AE26: 81.37317228
M27: Total | S27: =SUM(S18:S26) -> 365 | V27: =SUM(V18:V26) -> 506.0500106 | AC27: =SUM(AC18:AC26) -> 506.0500106 | AD27: =SUM(AD18:AD26) -> 506.0500106 | AE27: =SUM(AE18:AE26) -> 506.0500106
M28: **Rest rotation every other year, summer use | S28: =IF(S27>365,"Exceeds 365 days in grazing year!","") ->  | V28: =IF(V27<365,"Less than 365 days of available forage!","") -> 
J36: Instructions for Drought Scenario Planning
J37: 1. Input user defined data into open white boxes
J38: 2. Enter SPI value for winter and summer for each pasture
J39: 3. Enter Unavailable water dates for each pasture
J40: 4. Enter use restriction dates for each pasture
J41: 5. Examine warnings for use levels exceeded (red text)
J42: 6. Consider adjustments to maintain use within allowable levels. Consider the following:
J43: a. Herd size and composition
J44: b. Days in pasture
J45: c. Pasture rotation sequence
J46: d. Planned utilization
J47: Other Features
J48: 1. "Pasture Sequence Re-Sort" button on the screen will re-arrange the pastures and dates according to the pasture rotation sequence you selected if you decide to make changes to the original sequence (cannot undo this action except by hand).
J49: 2. Saving scenario solutions in spreadsheet tabs: Identical copies of the tool with the specific scenario details are saved in different spreadsheet tabs located at the bottom of the window; these can be used to save different possible solutions to a single drought scenario. These are labeled by default as "Solution 1", "Solution 2", etc.
J50: 3. Worksheet: used in conjunction with this tool to identify solutions and determine whether they will need consultation and approval with updated AOI and deviation from AMP.

Sheet Solution 5
J7: S | S7: Herd Composition
J8: Reference Values for Drought Severity Effects on Seasonal Forage Production | T8: Jan - May | U8: June - Dec
N9: Winter* | P9: Summer | S9: Cows | T9: 300 | U9: 300
J10: Standard Precipitation Index (SPI) | N10: -1 | O10: -2 | P10: -1 | Q10: -2 | S10: Bulls | T10: =T9/15 -> 20 | U10: =U9/15 -> 20
D11: % of averag forage production, for SPI values -1, -2 in the winter and summer seasons | J11: Estimated Forage Reduction (% of Average) | N11: 0.58 | O11: 0.34 | P11: 0.72 | Q11: 0.52 | S11: Yearlings | T11: 150 | U11: 40
D12: Winter | F12: Summer | J12: *Winter = October - May; Summer = June - September | S12: Total Herd AU's | T12: =T9+(T10*1.75)+(T11*0.7) -> 440 | U12: =U9+(U10*1.75)+(U11*0.7) -> 363
D14: SPI -1 | E14: SPI -2 | F14: SPI -1 | G14: SPI -2
A15: Pasture Forage Production | D15: 0.58 | E15: 0.34 | F15: 0.72 | G15: 0.52 | J15: Drought Factors | M15: Grazing Plan
A16: Pasture | B16: Acreage | C16: Average Forage Production (lbs/A) | D16: SPI - 1 Forage Production (lbs/A) | E16: SPI - 2 Forage Production (lbs/A) | F16: SPI - 1 Forage Production (lbs/A) | G16: SPI - 2 Forage Production (lbs/A) | J16: SPI Value (pasture level) | M16: Pasture | N16: Pasture Rotation Sequence | O16: Planned % Utilization | P16: Water (dates when unavailable) | Q16: Seasonal Use Restrictions (dates) | S16: Number Days in Pasture | T16: First Day in Pasture | U16: Last Day in Pasture | V16: Maximum Seasonal Grazing Days | W16: Drought Season Affecting Forage Production | X16: Pasture Warnings | AC16: Herd Grazing Days Without Drought | AD16: Drought-Adjusted Seasonal Herd Grazing Days
J17: Winter Season | K17: Summer Season | AD17: Winter Season | AE17: Summer Season
A18: Riparian | B18: 3000 | C18: 850 | D18: =C18*$D$15 -> 493 | E18: =C18*$E$15 -> 289 | F18: =C18*$F$15 -> 612 | G18: =C18*$G$15 -> 442 | J18: 0 | K18: 0 | M18: Riparian | N18: 1 | O18: 0.2 | S18: 43 | T18: 2016-01-01 | U18: =IF(S18=0,(T18+0),(T18+S18)-1) -> 2016-02-12 | V18: =IF(AND(T18>=DATE(2016,6,1),(T18<=DATE(2016,12,31))),AE18,IF(AND(T18>=DATE(2015,6,1),(T18<=DATE(2015,12,31))),AE18,IF(AND(T18>=DATE(2017,6,1),(T18<=DATE(2017,12,31))),AE18,IF(AND(T18>=DATE(2018,6,1),(T18<=DATE(2018,12,31))),AE18,IF(AND(T18>=DATE(2019,6,1),(T18<=DATE(2019,12,31))),AE18,IF(AND(T18>=DATE(2020,6,1),(T18<=DATE(2020,12,31))),AE18,AD18)))))) -> 44.58041958 | W18: =IF(AND(T18>=DATE(2016,6,1),(T18<=DATE(2016,12,31))),"Summer",IF(AND(T18>=DATE(2015,6,1),(T18<=DATE(2015,12,31))),"Summer",IF(AND(T18>=DATE(2017,6,1),(T18<=DATE(2017,12,31))),"Summer",IF(AND(T18>=DATE(2018,6,1),(T18<=DATE(2018,12,31))),"Summer",IF(AND(T18>=DATE(2019,6,1),(T18<=DATE(2019,12,31))),"Summer",IF(AND(T18>=DATE(2020,6,1),(T18<=DATE(2020,12,31))),"Summer","Winter")))))) -> Winter | X18: =IF(S18>V18,"Exceeds Maximum Seasonal Grazing Days","") ->  | AC18: =IF(AND(T18>=DATE(2016,1,1),(T18<=DATE(2016,5,31))),(((B18*C18)*O18/26)/$T$12),IF(AND(T18>=DATE(2016,6,1),(T18<=DATE(2016,12,31))),(((B18*C18)*O18/26)/$U$12),IF(AND(T18>=DATE(2015,1,1),(T18<=DATE(2015,5,31))),(((B18*C18)*O18/26)/$T$12),IF(AND(T18>=DATE(2015,6,1),(T18<=DATE(2015,12,31))),(((B18*C18)*O18/26)/$U$12),IF(AND(T18>=DATE(2017,1,1),(T18<=DATE(2017,5,31))),(((B18*C18)*O18/26)/$T$12),IF(AND(T18>=DATE(2017,6,1),(T18<=DATE(2017,12,31))),(((B18*C18)*O18/26)/$U$12),IF(AND(T18>=DATE(2018,1,1),(T18<=DATE(2018,5,31))),(((B18*C18)*O18/26)/$T$12),IF(AND(T18>=DATE(2018,6,1),(T18<=DATE(2018,12,31))),(((B18*C18)*O18/26)/$U$12),IF(AND(T18>=DATE(2019,1,1),(T18<=DATE(2019,5,31))),(((B18*C18)*O18/26)/$T$12),IF(AND(T18>=DATE(2019,6,1),(T18<=DATE(2019,12,31))),(((B18*C18)*O18/26)/$U$12),IF(AND(T18>=DATE(2020,1,1),(T18<=DATE(2020,5,31))),(((B18*C18)*O18/26)/$T$12),IF(AND(T18>=DATE(2020,6,1),(T18<=DATE(2020,12,31))),(((B18*C18)*O18/26)/$U$12))))))))))))) -> 44.58041958 | AD18: =IF(J18=0,AC18,IF(J18=-1,AC18*0.58,IF(J18=-2,(AC18*0.34),"NA"))) -> 44.58041958 | AE18: =IF(K18=0,AC18,IF(K18=-1,AC18*0.72,IF(K18=-2,(AC18*0.52),"NA"))) -> 44.58041958
A19: Headquarters | B19: 800 | C19: 700 | D19: 406 | E19: 238 | F19: 504 | G19: 364 | J19: 0 | K19: 0 | M19: Headquarters | N19: 2 | O19: 0.4 | S19: 19 | T19: =IF(S19=0,U18,U18+1) -> 2016-02-13 | U19: =IF(S19=0,(T19+0),(T19+S19)-1) -> 2016-03-02 | V19: =IF(AND(T19>=DATE(2016,6,1),(T19<=DATE(2016,12,31))),AE19,IF(AND(T19>=DATE(2015,6,1),(T19<=DATE(2015,12,31))),AE19,IF(AND(T19>=DATE(2017,6,1),(T19<=DATE(2017,12,31))),AE19,IF(AND(T19>=DATE(2018,6,1),(T19<=DATE(2018,12,31))),AE19,IF(AND(T19>=DATE(2019,6,1),(T19<=DATE(2019,12,31))),AE19,IF(AND(T19>=DATE(2020,6,1),(T19<=DATE(2020,12,31))),AE19,AD19)))))) -> 19.58041958 | W19: =IF(AND(T19>=DATE(2016,6,1),(T19<=DATE(2016,12,31))),"Summer",IF(AND(T19>=DATE(2015,6,1),(T19<=DATE(2015,12,31))),"Summer",IF(AND(T19>=DATE(2017,6,1),(T19<=DATE(2017,12,31))),"Summer",IF(AND(T19>=DATE(2018,6,1),(T19<=DATE(2018,12,31))),"Summer",IF(AND(T19>=DATE(2019,6,1),(T19<=DATE(2019,12,31))),"Summer",IF(AND(T19>=DATE(2020,6,1),(T19<=DATE(2020,12,31))),"Summer","Winter")))))) -> Winter | X19: =IF(S19>V19,"Exceeds Maximum Seasonal Grazing Days","") ->  | AC19: =IF(AND(T19>=DATE(2016,1,1),(T19<=DATE(2016,5,31))),(((B19*C19)*O19/26)/$T$12),IF(AND(T19>=DATE(2016,6,1),(T19<=DATE(2016,12,31))),(((B19*C19)*O19/26)/$U$12),IF(AND(T19>=DATE(2015,1,1),(T19<=DATE(2015,5,31))),(((B19*C19)*O19/26)/$T$12),IF(AND(T19>=DATE(2015,6,1),(T19<=DATE(2015,12,31))),(((B19*C19)*O19/26)/$U$12),IF(AND(T19>=DATE(2017,1,1),(T19<=DATE(2017,5,31))),(((B19*C19)*O19/26)/$T$12),IF(AND(T19>=DATE(2017,6,1),(T19<=DATE(2017,12,31))),(((B19*C19)*O19/26)/$U$12),IF(AND(T19>=DATE(2018,1,1),(T19<=DATE(2018,5,31))),(((B19*C19)*O19/26)/$T$12),IF(AND(T19>=DATE(2018,6,1),(T19<=DATE(2018,12,31))),(((B19*C19)*O19/26)/$U$12),IF(AND(T19>=DATE(2019,1,1),(T19<=DATE(2019,5,31))),(((B19*C19)*O19/26)/$T$12),IF(AND(T19>=DATE(2019,6,1),(T19<=DATE(2019,12,31))),(((B19*C19)*O19/26)/$U$12),IF(AND(T19>=DATE(2020,1,1),(T19<=DATE(2020,5,31))),(((B19*C19)*O19/26)/$T$12),IF(AND(T19>=DATE(2020,6,1),(T19<=DATE(2020,12,31))),(((B19*C19)*O19/26)/$U$12))))))))))))) -> 19.58041958 | AD19: =IF(J19=0,AC19,IF(J19=-1,AC19*0.58,IF(J19=-2,(AC19*0.34),"NA"))) -> 19.58041958 | AE19: =IF(K19=0,AC19,IF(K19=-1,AC19*0.72,IF(K19=-2,(AC19*0.52),"NA"))) -> 19.58041958
A20: Pipeline | B20: 4000 | C20: 550 | D20: 319 | E20: 187 | F20: 396 | G20: 286 | J20: 0 | K20: 0 | M20: Pipeline | N20: 3 | O20: 0.4 | S20: 60 | T20: =IF(S20=0,U19,U19+1) -> 2016-03-03 | U20: 2016-05-01 | V20: 76.92307692 | W20: Winter | AC20: 76.92307692 | AD20: 76.92307692 | AE20: 76.92307692
A21: Wydot | B21: 3900 | C21: 650 | D21: 377 | E21: 221 | F21: 468 | G21: 338 | J21: 0 | K21: 0 | M21: Wydot | N21: 4 | O21: 0.4 | S21: 50 | T21: 2016-05-02 | U21: 2016-06-20 | V21: 88.63636364 | W21: Winter | AC21: 88.63636364 | AD21: 88.63636364 | AE21: 88.63636364
A22: Son of A Gun | B22: 2800 | C22: 600 | D22: 348 | E22: 204 | F22: 432 | G22: 312 | J22: 0 | K22: 0 | M22: Son of A Gun | N22: 5 | O22: 0.4 | S22: 40 | T22: 2016-06-21 | U22: 2016-07-30 | V22: 71.20152575 | W22: Summer | AC22: 71.20152575 | AD22: 71.20152575 | AE22: 71.20152575
A23: Miners Camp* | B23: 4800 | C23: 300 | D23: 174 | E23: 102 | F23: 216 | G23: 156 | J23: 0 | K23: 0 | M23: Miners Camp** | N23: 6 | O23: 0.2 | S23: 25 | T23: 2016-07-31 | U23: 2016-08-24 | V23: 30.51493961 | W23: Summer | AC23: 30.51493961 | AD23: 30.51493961 | AE23: 30.51493961
A24: Timber Top* | B24: 3500 | C24: 325 | D24: 188.5 | E24: 110.5 | F24: 234 | G24: 169 | J24: 0 | K24: 0 | M24: Timber Top** | N24: 7 | O24: 0 | S24: 0 | T24: 2016-08-24 | U24: 2016-08-24 | V24: 0 | W24: Summer | AC24: 0 | AD24: 0 | AE24: 0
A25: Preacher Tom | B25: 4000 | C25: 550 | D25: 319 | E25: 187 | F25: 396 | G25: 286 | J25: 0 | K25: 0 | M25: Preacher Tom | N25: 8 | O25: 0.4 | S25: 76 | T25: 2016-08-25 | U25: 2016-11-08 | V25: 93.24009324 | W25: Summer | AC25: 93.24009324 | AD25: 93.24009324 | AE25: 93.24009324
A26: Old Homestead | B26: 3200 | C26: 600 | D26: 348 | E26: 204 | F26: 432 | G26: 312 | J26: 0 | K26: 0 | M26: Old Homestead | N26: 9 | O26: 0.4 | S26: 52 | T26: 2016-11-09 | U26: =IF(S26=0,(T26+0),(T26+S26)-1) -> 2016-12-30 | V26: 81.37317228 | W26: Summer | AC26: 81.37317228 | AD26: 81.37317228 | AE26: 81.37317228
M27: Total | S27: =SUM(S18:S26) -> 365 | V27: =SUM(V18:V26) -> 506.0500106 | AC27: =SUM(AC18:AC26) -> 506.0500106 | AD27: =SUM(AD18:AD26) -> 506.0500106 | AE27: =SUM(AE18:AE26) -> 506.0500106
M28: **Rest rotation every other year, summer use | S28: =IF(S27>365,"Exceeds 365 days in grazing year!","") ->  | V28: =IF(V27<365,"Less than 365 days of available forage!","") -> 
J36: Instructions for Drought Scenario Planning
J37: 1. Input user defined data into open white boxes
J38: 2. Enter SPI value for winter and summer for each pasture
J39: 3. Enter Unavailable water dates for each pasture
J40: 4. Enter use restriction dates for each pasture
J41: 5. Examine warnings for use levels exceeded (red text)
J42: 6. Consider adjustments to maintain use within allowable levels. Consider the following:
J43: a. Herd size and composition
J44: b. Days in pasture
J45: c. Pasture rotation sequence
J46: d. Planned utilization
J47: Other Features
J48: 1. "Pasture Sequence Re-Sort" button on the screen will re-arrange the pastures and dates according to the pasture rotation sequence you selected if you decide to make changes to the original sequence (cannot undo this action except by hand).
J49: 2. Saving scenario solutions in spreadsheet tabs: Identical copies of the tool with the specific scenario details are saved in different spreadsheet tabs located at the bottom of the window; these can be used to save different possible solutions to a single drought scenario. These are labeled by default as "Solution 1", "Solution 2", etc.
J50: 3. Worksheet: used in conjunction with this tool to identify solutions and determine whether they will need consultation and approval with updated AOI and deviation from AMP.

Sheet Solution 6
J7: S | S7: Herd Composition
J8: Reference Values for Drought Severity Effects on Seasonal Forage Production | T8: Jan - May | U8: June - Dec
N9: Winter* | P9: Summer | S9: Cows | T9: 300 | U9: 300
J10: Standard Precipitation Index (SPI) | N10: -1 | O10: -2 | P10: -1 | Q10: -2 | S10: Bulls | T10: =T9/15 -> 20 | U10: =U9/15 -> 20
D11: % of averag forage production, for SPI values -1, -2 in the winter and summer seasons | J11: Estimated Forage Reduction (% of Average) | N11: 0.58 | O11: 0.34 | P11: 0.72 | Q11: 0.52 | S11: Yearlings | T11: 150 | U11: 40
D12: Winter | F12: Summer | J12: *Winter = October - May; Summer = June - September | S12: Total Herd AU's | T12: =T9+(T10*1.75)+(T11*0.7) -> 440 | U12: =U9+(U10*1.75)+(U11*0.7) -> 363
D14: SPI -1 | E14: SPI -2 | F14: SPI -1 | G14: SPI -2
A15: Pasture Forage Production | D15: 0.58 | E15: 0.34 | F15: 0.72 | G15: 0.52 | J15: Drought Factors | M15: Grazing Plan
A16: Pasture | B16: Acreage | C16: Average Forage Production (lbs/A) | D16: SPI - 1 Forage Production (lbs/A) | E16: SPI - 2 Forage Production (lbs/A) | F16: SPI - 1 Forage Production (lbs/A) | G16: SPI - 2 Forage Production (lbs/A) | J16: SPI Value (pasture level) | M16: Pasture | N16: Pasture Rotation Sequence | O16: Planned % Utilization | P16: Water (dates when unavailable) | Q16: Seasonal Use Restrictions (dates) | S16: Number Days in Pasture | T16: First Day in Pasture | U16: Last Day in Pasture | V16: Maximum Seasonal Grazing Days | W16: Drought Season Affecting Forage Production | X16: Pasture Warnings | AC16: Herd Grazing Days Without Drought | AD16: Drought-Adjusted Seasonal Herd Grazing Days
J17: Winter Season | K17: Summer Season | AD17: Winter Season | AE17: Summer Season
A18: Riparian | B18: 3000 | C18: 850 | D18: =C18*$D$15 -> 493 | E18: =C18*$E$15 -> 289 | F18: =C18*$F$15 -> 612 | G18: =C18*$G$15 -> 442 | J18: 0 | K18: 0 | M18: Riparian | N18: 1 | O18: 0.2 | S18: 43 | T18: 2016-01-01 | U18: =IF(S18=0,(T18+0),(T18+S18)-1) -> 2016-02-12 | V18: =IF(AND(T18>=DATE(2016,6,1),(T18<=DATE(2016,12,31))),AE18,IF(AND(T18>=DATE(2015,6,1),(T18<=DATE(2015,12,31))),AE18,IF(AND(T18>=DATE(2017,6,1),(T18<=DATE(2017,12,31))),AE18,IF(AND(T18>=DATE(2018,6,1),(T18<=DATE(2018,12,31))),AE18,IF(AND(T18>=DATE(2019,6,1),(T18<=DATE(2019,12,31))),AE18,IF(AND(T18>=DATE(2020,6,1),(T18<=DATE(2020,12,31))),AE18,AD18)))))) -> 44.58041958 | W18: =IF(AND(T18>=DATE(2016,6,1),(T18<=DATE(2016,12,31))),"Summer",IF(AND(T18>=DATE(2015,6,1),(T18<=DATE(2015,12,31))),"Summer",IF(AND(T18>=DATE(2017,6,1),(T18<=DATE(2017,12,31))),"Summer",IF(AND(T18>=DATE(2018,6,1),(T18<=DATE(2018,12,31))),"Summer",IF(AND(T18>=DATE(2019,6,1),(T18<=DATE(2019,12,31))),"Summer",IF(AND(T18>=DATE(2020,6,1),(T18<=DATE(2020,12,31))),"Summer","Winter")))))) -> Winter | X18: =IF(S18>V18,"Exceeds Maximum Seasonal Grazing Days","") ->  | AC18: =IF(AND(T18>=DATE(2016,1,1),(T18<=DATE(2016,5,31))),(((B18*C18)*O18/26)/$T$12),IF(AND(T18>=DATE(2016,6,1),(T18<=DATE(2016,12,31))),(((B18*C18)*O18/26)/$U$12),IF(AND(T18>=DATE(2015,1,1),(T18<=DATE(2015,5,31))),(((B18*C18)*O18/26)/$T$12),IF(AND(T18>=DATE(2015,6,1),(T18<=DATE(2015,12,31))),(((B18*C18)*O18/26)/$U$12),IF(AND(T18>=DATE(2017,1,1),(T18<=DATE(2017,5,31))),(((B18*C18)*O18/26)/$T$12),IF(AND(T18>=DATE(2017,6,1),(T18<=DATE(2017,12,31))),(((B18*C18)*O18/26)/$U$12),IF(AND(T18>=DATE(2018,1,1),(T18<=DATE(2018,5,31))),(((B18*C18)*O18/26)/$T$12),IF(AND(T18>=DATE(2018,6,1),(T18<=DATE(2018,12,31))),(((B18*C18)*O18/26)/$U$12),IF(AND(T18>=DATE(2019,1,1),(T18<=DATE(2019,5,31))),(((B18*C18)*O18/26)/$T$12),IF(AND(T18>=DATE(2019,6,1),(T18<=DATE(2019,12,31))),(((B18*C18)*O18/26)/$U$12),IF(AND(T18>=DATE(2020,1,1),(T18<=DATE(2020,5,31))),(((B18*C18)*O18/26)/$T$12),IF(AND(T18>=DATE(2020,6,1),(T18<=DATE(2020,12,31))),(((B18*C18)*O18/26)/$U$12))))))))))))) -> 44.58041958 | AD18: =IF(J18=0,AC18,IF(J18=-1,AC18*0.58,IF(J18=-2,(AC18*0.34),"NA"))) -> 44.58041958 | AE18: =IF(K18=0,AC18,IF(K18=-1,AC18*0.72,IF(K18=-2,(AC18*0.52),"NA"))) -> 44.58041958
A19: Headquarters | B19: 800 | C19: 700 | D19: 406 | E19: 238 | F19: 504 | G19: 364 | J19: 0 | K19: 0 | M19: Headquarters | N19: 2 | O19: 0.4 | S19: 19 | T19: =IF(S19=0,U18,U18+1) -> 2016-02-13 | U19: =IF(S19=0,(T19+0),(T19+S19)-1) -> 2016-03-02 | V19: =IF(AND(T19>=DATE(2016,6,1),(T19<=DATE(2016,12,31))),AE19,IF(AND(T19>=DATE(2015,6,1),(T19<=DATE(2015,12,31))),AE19,IF(AND(T19>=DATE(2017,6,1),(T19<=DATE(2017,12,31))),AE19,IF(AND(T19>=DATE(2018,6,1),(T19<=DATE(2018,12,31))),AE19,IF(AND(T19>=DATE(2019,6,1),(T19<=DATE(2019,12,31))),AE19,IF(AND(T19>=DATE(2020,6,1),(T19<=DATE(2020,12,31))),AE19,AD19)))))) -> 19.58041958 | W19: =IF(AND(T19>=DATE(2016,6,1),(T19<=DATE(2016,12,31))),"Summer",IF(AND(T19>=DATE(2015,6,1),(T19<=DATE(2015,12,31))),"Summer",IF(AND(T19>=DATE(2017,6,1),(T19<=DATE(2017,12,31))),"Summer",IF(AND(T19>=DATE(2018,6,1),(T19<=DATE(2018,12,31))),"Summer",IF(AND(T19>=DATE(2019,6,1),(T19<=DATE(2019,12,31))),"Summer",IF(AND(T19>=DATE(2020,6,1),(T19<=DATE(2020,12,31))),"Summer","Winter")))))) -> Winter | X19: =IF(S19>V19,"Exceeds Maximum Seasonal Grazing Days","") ->  | AC19: =IF(AND(T19>=DATE(2016,1,1),(T19<=DATE(2016,5,31))),(((B19*C19)*O19/26)/$T$12),IF(AND(T19>=DATE(2016,6,1),(T19<=DATE(2016,12,31))),(((B19*C19)*O19/26)/$U$12),IF(AND(T19>=DATE(2015,1,1),(T19<=DATE(2015,5,31))),(((B19*C19)*O19/26)/$T$12),IF(AND(T19>=DATE(2015,6,1),(T19<=DATE(2015,12,31))),(((B19*C19)*O19/26)/$U$12),IF(AND(T19>=DATE(2017,1,1),(T19<=DATE(2017,5,31))),(((B19*C19)*O19/26)/$T$12),IF(AND(T19>=DATE(2017,6,1),(T19<=DATE(2017,12,31))),(((B19*C19)*O19/26)/$U$12),IF(AND(T19>=DATE(2018,1,1),(T19<=DATE(2018,5,31))),(((B19*C19)*O19/26)/$T$12),IF(AND(T19>=DATE(2018,6,1),(T19<=DATE(2018,12,31))),(((B19*C19)*O19/26)/$U$12),IF(AND(T19>=DATE(2019,1,1),(T19<=DATE(2019,5,31))),(((B19*C19)*O19/26)/$T$12),IF(AND(T19>=DATE(2019,6,1),(T19<=DATE(2019,12,31))),(((B19*C19)*O19/26)/$U$12),IF(AND(T19>=DATE(2020,1,1),(T19<=DATE(2020,5,31))),(((B19*C19)*O19/26)/$T$12),IF(AND(T19>=DATE(2020,6,1),(T19<=DATE(2020,12,31))),(((B19*C19)*O19/26)/$U$12))))))))))))) -> 19.58041958 | AD19: =IF(J19=0,AC19,IF(J19=-1,AC19*0.58,IF(J19=-2,(AC19*0.34),"NA"))) -> 19.58041958 | AE19: =IF(K19=0,AC19,IF(K19=-1,AC19*0.72,IF(K19=-2,(AC19*0.52),"NA"))) -> 19.58041958
A20: Pipeline | B20: 4000 | C20: 550 | D20: 319 | E20: 187 | F20: 396 | G20: 286 | J20: 0 | K20: 0 | M20: Pipeline | N20: 3 | O20: 0.4 | S20: 60 | T20: =IF(S20=0,U19,U19+1) -> 2016-03-03 | U20: 2016-05-01 | V20: 76.92307692 | W20: Winter | AC20: 76.92307692 | AD20: 76.92307692 | AE20: 76.92307692
A21: Wydot | B21: 3900 | C21: 650 | D21: 377 | E21: 221 | F21: 468 | G21: 338 | J21: 0 | K21: 0 | M21: Wydot | N21: 4 | O21: 0.4 | S21: 50 | T21: 2016-05-02 | U21: 2016-06-20 | V21: 88.63636364 | W21: Winter | AC21: 88.63636364 | AD21: 88.63636364 | AE21: 88.63636364
A22: Son of A Gun | B22: 2800 | C22: 600 | D22: 348 | E22: 204 | F22: 432 | G22: 312 | J22: 0 | K22: 0 | M22: Son of A Gun | N22: 5 | O22: 0.4 | S22: 40 | T22: 2016-06-21 | U22: 2016-07-30 | V22: 71.20152575 | W22: Summer | AC22: 71.20152575 | AD22: 71.20152575 | AE22: 71.20152575
A23: Miners Camp* | B23: 4800 | C23: 300 | D23: 174 | E23: 102 | F23: 216 | G23: 156 | J23: 0 | K23: 0 | M23: Miners Camp** | N23: 6 | O23: 0.2 | S23: 25 | T23: 2016-07-31 | U23: 2016-08-24 | V23: 30.51493961 | W23: Summer | AC23: 30.51493961 | AD23: 30.51493961 | AE23: 30.51493961
A24: Timber Top* | B24: 3500 | C24: 325 | D24: 188.5 | E24: 110.5 | F24: 234 | G24: 169 | J24: 0 | K24: 0 | M24: Timber Top** | N24: 7 | O24: 0 | S24: 0 | T24: 2016-08-24 | U24: 2016-08-24 | V24: 0 | W24: Summer | AC24: 0 | AD24: 0 | AE24: 0
A25: Preacher Tom | B25: 4000 | C25: 550 | D25: 319 | E25: 187 | F25: 396 | G25: 286 | J25: 0 | K25: 0 | M25: Preacher Tom | N25: 8 | O25: 0.4 | S25: 76 | T25: 2016-08-25 | U25: 2016-11-08 | V25: 93.24009324 | W25: Summer | AC25: 93.24009324 | AD25: 93.24009324 | AE25: 93.24009324
A26: Old Homestead | B26: 3200 | C26: 600 | D26: 348 | E26: 204 | F26: 432 | G26: 312 | J26: 0 | K26: 0 | M26: Old Homestead | N26: 9 | O26: 0.4 | S26: 52 | T26: 2016-11-09 | U26: =IF(S26=0,(T26+0),(T26+S26)-1) -> 2016-12-30 | V26: 81.37317228 | W26: Summer | AC26: 81.37317228 | AD26: 81.37317228 | AE26: 81.37317228
M27: Total | S27: =SUM(S18:S26) -> 365 | V27: =SUM(V18:V26) -> 506.0500106 | AC27: =SUM(AC18:AC26) -> 506.0500106 | AD27: =SUM(AD18:AD26) -> 506.0500106 | AE27: =SUM(AE18:AE26) -> 506.0500106
M28: **Rest rotation every other year, summer use | S28: =IF(S27>365,"Exceeds 365 days in grazing year!","") ->  | V28: =IF(V27<365,"Less than 365 days of available forage!","") -> 
J36: Instructions for Drought Scenario Planning
J37: 1. Input user defined data into open white boxes
J38: 2. Enter SPI value for winter and summer for each pasture
J39: 3. Enter Unavailable water dates for each pasture
J40: 4. Enter use restriction dates for each pasture
J41: 5. Examine warnings for use levels exceeded (red text)
J42: 6. Consider adjustments to maintain use within allowable levels. Consider the following:
J43: a. Herd size and composition
J44: b. Days in pasture
J45: c. Pasture rotation sequence
J46: d. Planned utilization
J47: Other Features
J48: 1. "Pasture Sequence Re-Sort" button on the screen will re-arrange the pastures and dates according to the pasture rotation sequence you selected if you decide to make changes to the original sequence (cannot undo this action except by hand).
J49: 2. Saving scenario solutions in spreadsheet tabs: Identical copies of the tool with the specific scenario details are saved in different spreadsheet tabs located at the bottom of the window; these can be used to save different possible solutions to a single drought scenario. These are labeled by default as "Solution 1", "Solution 2", etc.
J50: 3. Worksheet: used in conjunction with this tool to identify solutions and determine whether they will need consultation and approval with updated AOI and deviation from AMP.
